[Event "Late-Titled-Tuesday-Blitz-October-17-2023"]
[Site "Chess.com"]
[Date "2023.10.17"]
[Round "10"]
[White "Chessdreamer2020"]
[Black "jaskol95"]
[Result "0-1"]
[WhiteElo "2492"]
[BlackElo "2583"]
[TimeControl "180+1"]
[EndTime "15:51:16 PDT"]
[Termination "jaskol95 won by checkmate"]

1. e4 {[%clk 0:03:00]} 1... d5 {[%clk 0:02:58.5]} 2. exd5 {[%clk 0:02:59.5]}
2... Nf6 {[%clk 0:02:58.7]} 3. Bb5+ {[%clk 0:02:59.4]} 3... Nbd7 {[%clk
0:02:58.6]} 4. Nf3 {[%clk 0:02:59.3]} 4... a6 {[%clk 0:02:54.4]} 5. Be2 {[%clk
0:02:59.2]} 5... Nxd5 {[%clk 0:02:55]} 6. d4 {[%clk 0:02:59.4]} 6... N5f6 {[%clk
0:02:52.5]} 7. O-O {[%clk 0:02:59.5]} 7... e6 {[%clk 0:02:52.2]} 8. c4 {[%clk
0:02:57.9]} 8... b6 {[%clk 0:02:52.3]} 9. Nc3 {[%clk 0:02:56.6]} 9... Bb7 {[%clk
0:02:52.6]} 10. Re1 {[%clk 0:02:57]} 10... Be7 {[%clk 0:02:52.6]} 11. b3 {[%clk
0:02:57.4]} 11... O-O {[%clk 0:02:52.4]} 12. Bb2 {[%clk 0:02:57.9]} 12... c5
{[%clk 0:02:48.4]} 13. Bf1 {[%clk 0:02:48.9]} 13... cxd4 {[%clk 0:02:47.2]} 14.
Qxd4 {[%clk 0:02:46.9]} 14... Nc5 {[%clk 0:02:38.6]} 15. Qe3 {[%clk 0:02:41.7]}
15... Qc7 {[%clk 0:02:33.1]} 16. Rad1 {[%clk 0:02:37.9]} 16... Ng4 {[%clk
0:02:18]} 17. Nd5 {[%clk 0:01:42.3]} 17... Nxe3 {[%clk 0:01:31.9]} 18. Nxc7
{[%clk 0:01:41.7]} 18... Nxd1 {[%clk 0:01:30.9]} 19. Nxa8 {[%clk 0:01:34.9]}
19... Nxb2 {[%clk 0:01:28.8]} 20. Nxb6 {[%clk 0:01:34.8]} 20... Bd8 {[%clk
0:01:08.2]} 21. Rb1 {[%clk 0:01:23.8]} 21... Nbd3 {[%clk 0:00:52]} 22. Nd7
{[%clk 0:01:23.7]} 22... Nxd7 {[%clk 0:00:49.9]} 23. Bxd3 {[%clk 0:01:24.1]}
23... Bxf3 {[%clk 0:00:50.5]} 24. gxf3 {[%clk 0:01:23.2]} 24... a5 {[%clk
0:00:49.2]} 25. a3 {[%clk 0:01:21]} 25... Be7 {[%clk 0:00:48.8]} 26. b4 {[%clk
0:01:20.5]} 26... Rb8 {[%clk 0:00:45.4]} 27. c5 {[%clk 0:01:19.3]} 27... axb4
{[%clk 0:00:42]} 28. axb4 {[%clk 0:01:20.2]} 28... Bxc5 {[%clk 0:00:39.9]} 29.
bxc5 {[%clk 0:01:19.6]} 29... Rxb1+ {[%clk 0:00:40.5]} 30. Bxb1 {[%clk
0:01:20.5]} 30... Nxc5 {[%clk 0:00:41.2]} 31. Kf1 {[%clk 0:01:20.9]} 31... h6
{[%clk 0:00:40.3]} 32. Ke2 {[%clk 0:01:21.2]} 32... f6 {[%clk 0:00:40.8]} 33.
Ke3 {[%clk 0:01:21.5]} 33... Kf7 {[%clk 0:00:41.3]} 34. Bc2 {[%clk 0:01:21.3]}
34... Nd7 {[%clk 0:00:41.1]} 35. Bb3 {[%clk 0:01:19.2]} 35... g5 {[%clk
0:00:40.4]} 36. f4 {[%clk 0:01:13.8]} 36... gxf4+ {[%clk 0:00:39.8]} 37. Kxf4
{[%clk 0:01:13.3]} 37... Ne5 {[%clk 0:00:37.2]} 38. Ba2 {[%clk 0:01:07.1]} 38...
Ke7 {[%clk 0:00:34.7]} 39. h3 {[%clk 0:01:05.1]} 39... Nd3+ {[%clk 0:00:34.2]}
40. Kg3 {[%clk 0:01:04.7]} 40... f5 {[%clk 0:00:31.9]} 41. Bb1 {[%clk
0:01:01.1]} 41... Ne5 {[%clk 0:00:29]} 42. Kh4 {[%clk 0:01:00]} 42... Kf6 {[%clk
0:00:27.5]} 43. Kh5 {[%clk 0:00:59.4]} 43... Kg7 {[%clk 0:00:26.6]} 44. Ba2
{[%clk 0:00:59.5]} 44... Nd3 {[%clk 0:00:22.9]} 45. Bxe6 {[%clk 0:00:59.4]}
45... Nf4+ {[%clk 0:00:23.3]} 46. Kh4 {[%clk 0:00:59.8]} 46... Nxe6 {[%clk
0:00:24]} 47. Kg3 {[%clk 0:01:00.2]} 47... Kf6 {[%clk 0:00:24.3]} 48. Kf3 {[%clk
0:01:00.6]} 48... Ke5 {[%clk 0:00:24.5]} 49. Ke3 {[%clk 0:01:00.7]} 49... f4+
{[%clk 0:00:25.2]} 50. Kf3 {[%clk 0:01:01.2]} 50... Kf5 {[%clk 0:00:25.6]} 51.
Kg2 {[%clk 0:01:00.8]} 51... Ke4 {[%clk 0:00:25.1]} 52. h4 {[%clk 0:00:59.9]}
52... h5 {[%clk 0:00:24.7]} 53. Kf1 {[%clk 0:00:58.7]} 53... Kf3 {[%clk
0:00:24.9]} 54. Kg1 {[%clk 0:00:59.6]} 54... Ng7 {[%clk 0:00:25.3]} 55. Kf1
{[%clk 0:00:59.8]} 55... Nf5 {[%clk 0:00:25.9]} 56. Kg1 {[%clk 0:01:00.4]} 56...
Nxh4 {[%clk 0:00:26.6]} 57. Kf1 {[%clk 0:01:01.3]} 57... Nf5 {[%clk 0:00:27.3]}
58. Kg1 {[%clk 0:01:02.2]} 58... h4 {[%clk 0:00:28]} 59. Kf1 {[%clk 0:01:03.1]}
59... Nd6 {[%clk 0:00:26.6]} 60. Kg1 {[%clk 0:01:04]} 60... Ne4 {[%clk
0:00:27.2]} 61. Kf1 {[%clk 0:01:04.7]} 61... Nxf2 {[%clk 0:00:27.4]} 62. Kg1
{[%clk 0:01:05.4]} 62... Ng4 {[%clk 0:00:27.9]} 63. Kh1 {[%clk 0:01:05.6]} 63...
Kg3 {[%clk 0:00:28]} 64. Kg1 {[%clk 0:01:06]} 64... h3 {[%clk 0:00:28.4]} 65.
Kh1 {[%clk 0:01:06.4]} 65... f3 {[%clk 0:00:28.5]} 66. Kg1 {[%clk 0:01:06.9]}
66... h2+ {[%clk 0:00:29]} 67. Kf1 {[%clk 0:01:07.3]} 67... h1=Q# {[%clk
0:00:28.2]} 0-1

[Event "Late-Titled-Tuesday-Blitz-October-17-2023"]
[Site "Chess.com"]
[Date "2023.10.17"]
[Round "10"]
[White "Vigg-Sama"]
[Black "Gyulamiryan-koryun"]
[Result "1-0"]
[WhiteElo "2192"]
[BlackElo "1948"]
[TimeControl "180+1"]
[EndTime "15:51:16 PDT"]
[Termination "Vigg-Sama won by resignation"]

1. e4 {[%clk 0:03:00.9]} 1... e5 {[%clk 0:02:58]} 2. Nf3 {[%clk 0:03:00.8]} 2...
Nc6 {[%clk 0:02:58.1]} 3. Bb5 {[%clk 0:03:00.8]} 3... a6 {[%clk 0:02:57.1]} 4.
Ba4 {[%clk 0:03:00.8]} 4... Nf6 {[%clk 0:02:57.7]} 5. O-O {[%clk 0:03:00.7]}
5... Be7 {[%clk 0:02:58.3]} 6. Re1 {[%clk 0:02:59.8]} 6... b5 {[%clk 0:02:59]}
7. Bb3 {[%clk 0:03:00.4]} 7... O-O {[%clk 0:02:59.5]} 8. a4 {[%clk 0:03:01]}
8... b4 {[%clk 0:02:59.3]} 9. d4 {[%clk 0:02:57.1]} 9... Nxd4 {[%clk 0:02:55.4]}
10. Nxd4 {[%clk 0:02:55.8]} 10... exd4 {[%clk 0:02:55.7]} 11. Qxd4 {[%clk
0:02:56.3]} 11... c5 {[%clk 0:02:51.4]} 12. Qd3 {[%clk 0:02:47.1]} 12... d6
{[%clk 0:02:44.6]} 13. Nd2 {[%clk 0:02:40.3]} 13... Be6 {[%clk 0:02:38.8]} 14.
Bd5 {[%clk 0:02:38.2]} 14... Nxd5 {[%clk 0:02:28.3]} 15. exd5 {[%clk 0:02:37.3]}
15... Bg4 {[%clk 0:02:18.7]} 16. Nc4 {[%clk 0:02:26.1]} 16... Bh5 {[%clk
0:02:15]} 17. f4 {[%clk 0:02:18.1]} 17... Rb8 {[%clk 0:01:59.9]} 18. b3 {[%clk
0:02:09.4]} 18... Bf6 {[%clk 0:01:57.9]} 19. Bb2 {[%clk 0:02:09.5]} 19... Bg6
{[%clk 0:01:56.1]} 20. f5 {[%clk 0:02:05.9]} 20... Bxb2 {[%clk 0:01:51.9]} 21.
Nxb2 {[%clk 0:02:01.1]} 21... Qf6 {[%clk 0:01:43.4]} 22. fxg6 {[%clk 0:01:50.3]}
22... Qxb2 {[%clk 0:01:43]} 23. gxh7+ {[%clk 0:01:45.7]} 23... Kh8 {[%clk
0:01:43.1]} 24. Rad1 {[%clk 0:01:40.6]} 24... g6 {[%clk 0:01:42.2]} 25. Qxa6
{[%clk 0:01:29.4]} 25... Rbd8 {[%clk 0:01:24.5]} 26. Qd3 {[%clk 0:01:24.1]}
26... Kxh7 {[%clk 0:01:23.7]} 27. Re3 {[%clk 0:01:23]} 27... Rde8 {[%clk
0:01:13]} 28. Rh3+ {[%clk 0:01:14.4]} 28... Kg7 {[%clk 0:01:12.6]} 29. Qd2
{[%clk 0:01:10.9]} 29... Rh8 {[%clk 0:01:10.6]} 30. Rxh8 {[%clk 0:01:06.3]}
30... Rxh8 {[%clk 0:01:08.9]} 31. Rf1 {[%clk 0:01:04.3]} 31... Rh4 {[%clk
0:01:02.1]} 32. Qf2 {[%clk 0:01:01.1]} 32... Qd4 {[%clk 0:00:53.8]} 33. Qxd4+
{[%clk 0:00:57.4]} 33... Rxd4 {[%clk 0:00:52.8]} 34. a5 {[%clk 0:00:45.4]} 34...
c4 {[%clk 0:00:51.2]} 35. a6 {[%clk 0:00:36.8]} 35... Rxd5 {[%clk 0:00:45.4]}
36. Ra1 {[%clk 0:00:36.4]} 36... cxb3 {[%clk 0:00:38.5]} 37. cxb3 {[%clk
0:00:27.4]} 37... Rd3 {[%clk 0:00:24]} 38. a7 {[%clk 0:00:26.9]} 38... Rxb3
{[%clk 0:00:24.3]} 39. a8=Q {[%clk 0:00:27.1]} 39... Rc3 {[%clk 0:00:22.1]} 40.
Qd5 {[%clk 0:00:25.2]} 40... b3 {[%clk 0:00:18.1]} 41. Qd4+ {[%clk 0:00:25]}
41... f6 {[%clk 0:00:17.2]} 1-0

[Event "Late-Titled-Tuesday-Blitz-October-17-2023"]
[Site "Chess.com"]
[Date "2023.10.17"]
[Round "10"]
[White "NigelDwarf"]
[Black "wanyaland"]
[Result "1-0"]
[WhiteElo "2553"]
[BlackElo "2458"]
[TimeControl "180+1"]
[EndTime "15:51:24 PDT"]
[Termination "NigelDwarf won by checkmate"]

1. Nf3 {[%clk 0:03:00.2]} 1... d5 {[%clk 0:02:36.6]} 2. c4 {[%clk 0:02:58.9]}
2... e6 {[%clk 0:02:34.7]} 3. e3 {[%clk 0:02:58.3]} 3... Nf6 {[%clk 0:02:35.1]}
4. Nc3 {[%clk 0:02:57.6]} 4... c5 {[%clk 0:02:35]} 5. cxd5 {[%clk 0:02:56.5]}
5... Nxd5 {[%clk 0:02:33]} 6. d4 {[%clk 0:02:54.5]} 6... Nxc3 {[%clk 0:02:31]}
7. bxc3 {[%clk 0:02:55.4]} 7... Be7 {[%clk 0:02:30.9]} 8. Bd3 {[%clk 0:02:54.6]}
8... O-O {[%clk 0:02:29.7]} 9. O-O {[%clk 0:02:45.2]} 9... Nd7 {[%clk
0:02:29.7]} 10. e4 {[%clk 0:02:43.3]} 10... b6 {[%clk 0:02:28.2]} 11. e5 {[%clk
0:02:40.6]} 11... Bb7 {[%clk 0:02:28.2]} 12. a4 {[%clk 0:02:30.5]} 12... Qc7
{[%clk 0:02:27.3]} 13. h4 {[%clk 0:02:24.8]} 13... Rfd8 {[%clk 0:02:25.4]} 14.
Bg5 {[%clk 0:02:23.5]} 14... Bxg5 {[%clk 0:02:13.6]} 15. Nxg5 {[%clk 0:02:00]}
15... h6 {[%clk 0:02:11.1]} 16. Bh7+ {[%clk 0:01:15.5]} 16... Kh8 {[%clk
0:02:01.8]} 17. Nxf7+ {[%clk 0:01:04.1]} 17... Kxh7 {[%clk 0:01:58.3]} 18. Qd3+
{[%clk 0:00:58.1]} 18... g6 {[%clk 0:01:48.8]} 19. Qe3 {[%clk 0:00:37.3]} 19...
Kg7 {[%clk 0:01:45]} 20. Nxh6 {[%clk 0:00:32.3]} 20... Qc6 {[%clk 0:01:31.8]}
21. f3 {[%clk 0:00:29.2]} 21... Rf8 {[%clk 0:01:23.1]} 22. Qg5 {[%clk
0:00:20.6]} 22... Rh8 {[%clk 0:00:51.1]} 23. Ng4 {[%clk 0:00:19.7]} 23... Raf8
{[%clk 0:00:46.8]} 24. a5 {[%clk 0:00:18.3]} 24... Rf5 {[%clk 0:00:40]} 25. Qe7+
{[%clk 0:00:17.7]} 25... Rf7 {[%clk 0:00:39.9]} 26. Qg5 {[%clk 0:00:17.5]} 26...
b5 {[%clk 0:00:35.5]} 27. a6 {[%clk 0:00:17.2]} 27... Ba8 {[%clk 0:00:31.3]} 28.
Rad1 {[%clk 0:00:15.8]} 28... c4 {[%clk 0:00:26.7]} 29. Rfe1 {[%clk 0:00:13.5]}
29... Rh5 {[%clk 0:00:22.7]} 30. Qd8 {[%clk 0:00:11.7]} 30... Rxf3 {[%clk
0:00:19.2]} 31. d5 {[%clk 0:00:10.7]} 31... Qc5+ {[%clk 0:00:18.1]} 32. Rd4
{[%clk 0:00:10.2]} 32... Rxh4 {[%clk 0:00:16]} 33. Qxd7+ {[%clk 0:00:09.6]}
33... Rf7 {[%clk 0:00:16.2]} 34. dxe6 {[%clk 0:00:08.6]} 34... Rxd7 {[%clk
0:00:15.4]} 35. exd7 {[%clk 0:00:08.6]} 35... Rxg4 {[%clk 0:00:15.3]} 36. d8=Q
{[%clk 0:00:08.7]} 36... Rxg2+ {[%clk 0:00:16.2]} 37. Kf1 {[%clk 0:00:08.7]}
37... Rg4 {[%clk 0:00:14.6]} 38. Rd7+ {[%clk 0:00:08.4]} 38... Kh6 {[%clk
0:00:14.6]} 39. Qh8+ {[%clk 0:00:07.9]} 39... Kg5 {[%clk 0:00:15.1]} 40. Qf6+
{[%clk 0:00:08.2]} 40... Kh5 {[%clk 0:00:15]} 41. Rh7# {[%clk 0:00:07.5]} 1-0

[Event "Late-Titled-Tuesday-Blitz-October-17-2023"]
[Site "Chess.com"]
[Date "2023.10.17"]
[Round "10"]
[White "AsaHoffmann"]
[Black "Goryachkina"]
[Result "0-1"]
[WhiteElo "2359"]
[BlackElo "2637"]
[TimeControl "180+1"]
[EndTime "15:51:30 PDT"]
[Termination "Goryachkina won by resignation"]

1. d4 {[%clk 0:02:57.6]} 1... Nf6 {[%clk 0:02:59.8]} 2. Bg5 {[%clk 0:02:56.8]}
2... Ne4 {[%clk 0:02:58.1]} 3. Bf4 {[%clk 0:02:56.5]} 3... d5 {[%clk 0:02:55.9]}
4. f3 {[%clk 0:02:56]} 4... Nf6 {[%clk 0:02:53]} 5. e4 {[%clk 0:02:55.9]} 5...
e6 {[%clk 0:02:50.9]} 6. e5 {[%clk 0:02:55.4]} 6... Nfd7 {[%clk 0:02:48.7]} 7.
Be3 {[%clk 0:02:55.3]} 7... c5 {[%clk 0:02:48.5]} 8. c3 {[%clk 0:02:55.3]} 8...
Nc6 {[%clk 0:02:46.2]} 9. f4 {[%clk 0:02:54.7]} 9... Qb6 {[%clk 0:02:39.7]} 10.
Qd2 {[%clk 0:02:54.3]} 10... Be7 {[%clk 0:02:24.9]} 11. Nf3 {[%clk 0:02:53.8]}
11... f6 {[%clk 0:02:20]} 12. Bd3 {[%clk 0:02:51.4]} 12... O-O {[%clk
0:02:15.7]} 13. O-O {[%clk 0:02:50.8]} 13... Qc7 {[%clk 0:01:55]} 14. Na3 {[%clk
0:02:43.5]} 14... a6 {[%clk 0:01:51.2]} 15. Nc2 {[%clk 0:02:38.8]} 15... c4
{[%clk 0:01:49]} 16. Be2 {[%clk 0:02:37.6]} 16... b5 {[%clk 0:01:45.3]} 17. Kh1
{[%clk 0:02:32.2]} 17... a5 {[%clk 0:01:42.1]} 18. a3 {[%clk 0:02:31.9]} 18...
Rb8 {[%clk 0:01:40.2]} 19. Bf2 {[%clk 0:02:26]} 19... b4 {[%clk 0:01:38.1]} 20.
axb4 {[%clk 0:02:25.5]} 20... axb4 {[%clk 0:01:38]} 21. Ne3 {[%clk 0:02:23.6]}
21... fxe5 {[%clk 0:01:30.3]} 22. fxe5 {[%clk 0:02:21.8]} 22... Nb6 {[%clk
0:01:20.2]} 23. Ng4 {[%clk 0:02:05]} 23... Bd7 {[%clk 0:01:15.7]} 24. Ng5 {[%clk
0:02:04]} 24... Qd8 {[%clk 0:00:51.9]} 25. Nh3 {[%clk 0:01:57.1]} 25... Be8
{[%clk 0:00:45.7]} 26. Be3 {[%clk 0:01:53.4]} 26... Bg6 {[%clk 0:00:42.9]} 27.
Bg5 {[%clk 0:01:48.5]} 27... Bf5 {[%clk 0:00:41]} 28. Bxe7 {[%clk 0:01:44]}
28... Nxe7 {[%clk 0:00:40.8]} 29. Ne3 {[%clk 0:01:39]} 29... Bxh3 {[%clk
0:00:36.6]} 30. gxh3 {[%clk 0:01:38.8]} 30... Ng6 {[%clk 0:00:33.5]} 31. Bg4
{[%clk 0:01:38.1]} 31... Qe7 {[%clk 0:00:32.9]} 32. Rxf8+ {[%clk 0:01:31.8]}
32... Rxf8 {[%clk 0:00:29.2]} 33. Rf1 {[%clk 0:01:31.2]} 33... Rxf1+ {[%clk
0:00:25.9]} 34. Nxf1 {[%clk 0:01:31]} 34... b3 {[%clk 0:00:25.2]} 35. Qf2 {[%clk
0:01:30.4]} 35... Nf8 {[%clk 0:00:25.1]} 36. Ng3 {[%clk 0:01:26.5]} 36... Na4
{[%clk 0:00:24.8]} 37. Kg2 {[%clk 0:01:18.7]} 37... Qb7 {[%clk 0:00:24]} 38. Nh5
{[%clk 0:01:13]} 38... Nxc3 {[%clk 0:00:15.6]} 39. Nf4 {[%clk 0:01:01.1]} 39...
Ne4 {[%clk 0:00:14.5]} 40. Qh4 {[%clk 0:01:00.8]} 40... Qf7 {[%clk 0:00:13.3]}
41. Bf3 {[%clk 0:00:56.4]} 41... c3 {[%clk 0:00:10.9]} 42. bxc3 {[%clk
0:00:50.4]} 42... b2 {[%clk 0:00:10.7]} 43. Bxe4 {[%clk 0:00:45.4]} 43... dxe4
{[%clk 0:00:11.6]} 0-1

[Event "Late-Titled-Tuesday-Blitz-October-17-2023"]
[Site "Chess.com"]
[Date "2023.10.17"]
[Round "10"]
[White "K_A_S_T_O_R"]
[Black "Nor1lsk"]
[Result "1-0"]
[WhiteElo "2877"]
[BlackElo "2734"]
[TimeControl "180+1"]
[EndTime "15:51:31 PDT"]
[Termination "K_A_S_T_O_R won on time"]

1. e4 {[%clk 0:03:00.9]} 1... c5 {[%clk 0:03:00.2]} 2. Nf3 {[%clk 0:03:00.3]}
2... e6 {[%clk 0:03:00.3]} 3. d4 {[%clk 0:03:00.8]} 3... cxd4 {[%clk 0:03:00.6]}
4. Nxd4 {[%clk 0:03:01.4]} 4... Nf6 {[%clk 0:03:01.3]} 5. Nc3 {[%clk 0:03:01.3]}
5... Nc6 {[%clk 0:03:02]} 6. Ndb5 {[%clk 0:03:01.2]} 6... Bc5 {[%clk 0:03:01.7]}
7. Bf4 {[%clk 0:03:00.2]} 7... O-O {[%clk 0:03:01.7]} 8. Bc7 {[%clk 0:03:00.6]}
8... Qe7 {[%clk 0:03:02]} 9. Bd6 {[%clk 0:03:01.1]} 9... Bxd6 {[%clk 0:03:02.5]}
10. Qxd6 {[%clk 0:03:01.7]} 10... Qd8 {[%clk 0:03:02.9]} 11. Qd2 {[%clk
0:02:57.5]} 11... d5 {[%clk 0:02:59.5]} 12. exd5 {[%clk 0:02:58]} 12... exd5
{[%clk 0:03:00.4]} 13. O-O-O {[%clk 0:02:57.5]} 13... Qa5 {[%clk 0:02:30.8]} 14.
f3 {[%clk 0:02:54.6]} 14... Bf5 {[%clk 0:02:16.8]} 15. Nd4 {[%clk 0:02:48]}
15... Bg6 {[%clk 0:02:12.7]} 16. h4 {[%clk 0:02:37]} 16... Rfc8 {[%clk
0:02:06.4]} 17. g4 {[%clk 0:02:33.5]} 17... Nb4 {[%clk 0:02:01.5]} 18. Kb1
{[%clk 0:01:48.1]} 18... Rxc3 {[%clk 0:01:07.4]} 19. Qxc3 {[%clk 0:01:48]} 19...
Qxa2+ {[%clk 0:01:07.9]} 20. Kc1 {[%clk 0:01:48.4]} 20... Qa5 {[%clk 0:01:01.2]}
21. Kd2 {[%clk 0:01:18.1]} 21... h5 {[%clk 0:00:54.4]} 22. g5 {[%clk 0:01:11.3]}
22... Nd7 {[%clk 0:00:53.8]} 23. Bb5 {[%clk 0:00:54.2]} 23... Ne5 {[%clk
0:00:42.1]} 24. Ra1 {[%clk 0:00:47.5]} 24... Qb6 {[%clk 0:00:28.9]} 25. Qxb4
{[%clk 0:00:47.1]} 25... a6 {[%clk 0:00:22.8]} 26. c3 {[%clk 0:00:36.6]} 26...
Nxf3+ {[%clk 0:00:20.5]} 27. Nxf3 {[%clk 0:00:30.9]} 27... Qf2+ {[%clk
0:00:20.4]} 28. Be2 {[%clk 0:00:30.1]} 28... Re8 {[%clk 0:00:20.9]} 29. Rae1
{[%clk 0:00:20.5]} 29... Re4 {[%clk 0:00:15.7]} 30. Nd4 {[%clk 0:00:19.7]} 30...
Qe3+ {[%clk 0:00:12.8]} 31. Kd1 {[%clk 0:00:20]} 31... a5 {[%clk 0:00:11.1]} 32.
Qc5 {[%clk 0:00:15]} 32... Qf2 {[%clk 0:00:05]} 33. Rhf1 {[%clk 0:00:14.2]}
33... Qh2 {[%clk 0:00:05]} 34. Bf3 {[%clk 0:00:08.2]} 34... Rxd4+ {[%clk
0:00:01.7]} 35. cxd4 {[%clk 0:00:08.6]} 35... Qxb2 {[%clk 0:00:01.6]} 36. Re2
{[%clk 0:00:06.5]} 1-0

[Event "Late-Titled-Tuesday-Blitz-October-17-2023"]
[Site "Chess.com"]
[Date "2023.10.17"]
[Round "10"]
[White "Polish_fighter3000"]
[Black "tptagain"]
[Result "1-0"]
[WhiteElo "3070"]
[BlackElo "2922"]
[TimeControl "180+1"]
[EndTime "15:51:35 PDT"]
[Termination "Polish_fighter3000 won on time"]

1. d4 {[%clk 0:03:00.9]} 1... d5 {[%clk 0:02:59.3]} 2. c4 {[%clk 0:03:00.3]}
2... e6 {[%clk 0:02:59.7]} 3. Nf3 {[%clk 0:03:00.2]} 3... c6 {[%clk 0:02:59.1]}
4. g3 {[%clk 0:02:49.7]} 4... dxc4 {[%clk 0:02:57.5]} 5. Bg2 {[%clk 0:02:49.8]}
5... b5 {[%clk 0:02:57.5]} 6. O-O {[%clk 0:02:38.6]} 6... Bb7 {[%clk 0:02:57]}
7. a4 {[%clk 0:02:38.2]} 7... a6 {[%clk 0:02:54.6]} 8. Ne5 {[%clk 0:02:33.6]}
8... Nf6 {[%clk 0:02:49.2]} 9. Nc3 {[%clk 0:02:32.8]} 9... Be7 {[%clk
0:02:46.7]} 10. axb5 {[%clk 0:02:26]} 10... axb5 {[%clk 0:02:47.6]} 11. Rxa8
{[%clk 0:02:26.2]} 11... Bxa8 {[%clk 0:02:48.5]} 12. Nxb5 {[%clk 0:02:26.7]}
12... cxb5 {[%clk 0:02:49.2]} 13. Bxa8 {[%clk 0:02:27.1]} 13... O-O {[%clk
0:02:49.8]} 14. Bg2 {[%clk 0:02:26.5]} 14... Qc7 {[%clk 0:02:48.9]} 15. Bd2
{[%clk 0:02:14]} 15... Bd6 {[%clk 0:02:39]} 16. f4 {[%clk 0:02:08.9]} 16... Qb6
{[%clk 0:02:04.3]} 17. e3 {[%clk 0:02:08]} 17... Nd5 {[%clk 0:01:59.7]} 18. g4
{[%clk 0:01:27.7]} 18... Bxe5 {[%clk 0:01:53.1]} 19. fxe5 {[%clk 0:01:27.2]}
19... Nc6 {[%clk 0:01:52]} 20. Kh1 {[%clk 0:01:21.5]} 20... b4 {[%clk
0:01:37.3]} 21. Be4 {[%clk 0:01:09.3]} 21... Qb5 {[%clk 0:00:44]} 22. Qf3 {[%clk
0:01:01.4]} 22... Nce7 {[%clk 0:00:41.9]} 23. h4 {[%clk 0:00:55.2]} 23... c3
{[%clk 0:00:39.8]} 24. bxc3 {[%clk 0:00:54.7]} 24... bxc3 {[%clk 0:00:40.7]} 25.
Bc1 {[%clk 0:00:54.9]} 25... f6 {[%clk 0:00:21.3]} 26. h5 {[%clk 0:00:47.8]}
26... f5 {[%clk 0:00:19.4]} 27. Bc2 {[%clk 0:00:37.5]} 27... Qb8 {[%clk
0:00:15.6]} 28. Ba3 {[%clk 0:00:33.3]} 28... Rf7 {[%clk 0:00:15]} 29. e4 {[%clk
0:00:25.1]} 29... Nb4 {[%clk 0:00:10.2]} 30. Bb3 {[%clk 0:00:25.3]} 30... Kh8
{[%clk 0:00:06.3]} 31. Bxe6 {[%clk 0:00:24]} 31... Rf8 {[%clk 0:00:06.7]} 32.
Qxc3 {[%clk 0:00:21.5]} 32... fxe4 {[%clk 0:00:05.6]} 33. Rb1 {[%clk 0:00:17.4]}
33... e3 {[%clk 0:00:03.6]} 34. Qxb4 {[%clk 0:00:13.3]} 34... Qa8+ {[%clk
0:00:03.9]} 35. d5 {[%clk 0:00:13.9]} 35... Re8 {[%clk 0:00:02.7]} 36. Qb3
{[%clk 0:00:08.2]} 36... e2 {[%clk 0:00:02.6]} 37. Re1 {[%clk 0:00:06]} 37...
Nc6 {[%clk 0:00:01.7]} 38. dxc6 {[%clk 0:00:05.4]} 38... Qxc6+ {[%clk
0:00:01.8]} 39. Kh2 {[%clk 0:00:06]} 1-0

[Event "Late-Titled-Tuesday-Blitz-October-17-2023"]
[Site "Chess.com"]
[Date "2023.10.17"]
[Round "10"]
[White "Fdpo95"]
[Black "johnmez"]
[Result "1-0"]
[WhiteElo "2482"]
[BlackElo "2322"]
[TimeControl "180+1"]
[EndTime "15:51:35 PDT"]
[Termination "Fdpo95 won on time"]

1. e4 {[%clk 0:03:00.9]} 1... e6 {[%clk 0:02:59.8]} 2. d4 {[%clk 0:03:00.9]}
2... d5 {[%clk 0:02:59.9]} 3. exd5 {[%clk 0:03:00.9]} 3... exd5 {[%clk
0:02:58.5]} 4. c4 {[%clk 0:03:01.4]} 4... Nf6 {[%clk 0:02:55.5]} 5. Nf3 {[%clk
0:03:00.9]} 5... Bb4+ {[%clk 0:02:51.4]} 6. Bd2 {[%clk 0:02:56.6]} 6... Bxd2+
{[%clk 0:02:48.5]} 7. Nbxd2 {[%clk 0:02:55.9]} 7... O-O {[%clk 0:02:49.1]} 8.
Be2 {[%clk 0:02:55.6]} 8... Re8 {[%clk 0:02:44.8]} 9. O-O {[%clk 0:02:53.8]}
9... Nc6 {[%clk 0:02:44.5]} 10. Re1 {[%clk 0:02:51.6]} 10... Bg4 {[%clk
0:02:35.6]} 11. c5 {[%clk 0:02:35.4]} 11... Ne4 {[%clk 0:02:26.9]} 12. Bb5
{[%clk 0:02:15]} 12... Qf6 {[%clk 0:02:10]} 13. Bxc6 {[%clk 0:02:12.7]} 13...
bxc6 {[%clk 0:02:05.8]} 14. h3 {[%clk 0:02:10.8]} 14... Bh5 {[%clk 0:02:04.1]}
15. g4 {[%clk 0:02:04.2]} 15... Bg6 {[%clk 0:01:59.7]} 16. Nxe4 {[%clk
0:01:58.4]} 16... Bxe4 {[%clk 0:01:50.9]} 17. Ne5 {[%clk 0:01:58.4]} 17... h5
{[%clk 0:01:41.2]} 18. gxh5 {[%clk 0:01:44.9]} 18... Rab8 {[%clk 0:01:29.3]} 19.
b3 {[%clk 0:01:24.9]} 19... Rbd8 {[%clk 0:01:08.1]} 20. Qg4 {[%clk 0:01:22.3]}
20... Re6 {[%clk 0:01:03.1]} 21. Re3 {[%clk 0:01:19]} 21... Rxe5 {[%clk
0:00:52.3]} 22. dxe5 {[%clk 0:01:19]} 22... Qxe5 {[%clk 0:00:52.6]} 23. Rae1
{[%clk 0:01:17.6]} 23... Qd4 {[%clk 0:00:40.4]} 24. f3 {[%clk 0:01:15]} 24... f5
{[%clk 0:00:40.3]} 25. Qh4 {[%clk 0:01:13.8]} 25... Rf8 {[%clk 0:00:39]} 26.
fxe4 {[%clk 0:00:43.1]} 26... f4 {[%clk 0:00:33.6]} 27. exd5 {[%clk 0:00:43.6]}
27... Qxc5 {[%clk 0:00:33.3]} 28. Qe7 {[%clk 0:00:41.5]} 28... Qb6 {[%clk
0:00:25.8]} 29. Qe6+ {[%clk 0:00:40.8]} 29... Kh8 {[%clk 0:00:23.5]} 30. h6
{[%clk 0:00:40.6]} 30... fxe3 {[%clk 0:00:19.2]} 31. hxg7+ {[%clk 0:00:40.3]}
31... Kxg7 {[%clk 0:00:18.7]} 32. Rxe3 {[%clk 0:00:40.6]} 32... cxd5 {[%clk
0:00:11.4]} 33. Qxb6 {[%clk 0:00:38.8]} 33... axb6 {[%clk 0:00:10.3]} 34. Re7+
{[%clk 0:00:39.5]} 34... Rf7 {[%clk 0:00:10.4]} 35. Re8 {[%clk 0:00:36.5]} 35...
Rd7 {[%clk 0:00:06.7]} 36. Kf2 {[%clk 0:00:36.9]} 36... c5 {[%clk 0:00:06.1]}
37. Ke3 {[%clk 0:00:36.9]} 37... Kf6 {[%clk 0:00:05.4]} 38. Rb8 {[%clk
0:00:37.3]} 38... Rd6 {[%clk 0:00:05.5]} 39. a4 {[%clk 0:00:36.6]} 39... Kg5
{[%clk 0:00:04.4]} 40. Kd3 {[%clk 0:00:34.5]} 40... Kf4 {[%clk 0:00:04.3]} 41.
Rh8 {[%clk 0:00:29]} 41... Rg6 {[%clk 0:00:04.1]} 42. h4 {[%clk 0:00:28.4]}
42... Rg3+ {[%clk 0:00:04.1]} 43. Kc2 {[%clk 0:00:28.9]} 43... d4 {[%clk
0:00:03.6]} 44. h5 {[%clk 0:00:27.6]} 44... Ke4 {[%clk 0:00:03]} 45. h6 {[%clk
0:00:27.6]} 45... Rg2+ {[%clk 0:00:03.1]} 46. Kc1 {[%clk 0:00:27.6]} 46... d3
{[%clk 0:00:03.3]} 47. h7 {[%clk 0:00:27.5]} 1-0